[Event "Early-Titled-Tuesday-Blitz-March-12-2024"]
[Site "Chess.com"]
[Date "2024.03.12"]
[Round "2"]
[White "RobertJFischer71"]
[Black "Matols"]
[Result "1-0"]
[WhiteElo "2573"]
[BlackElo "2363"]
[TimeControl "180+1"]
[EndTime "8:16:12 PDT"]
[Termination "RobertJFischer71 won by resignation"]

1. e4 {[%clk 0:03:00.9]} 1... c6 {[%clk 0:03:00.3]} 2. Nc3 {[%clk 0:03:00.3]}
2... d5 {[%clk 0:03:00.6]} 3. Nf3 {[%clk 0:03:01.2]} 3... dxe4 {[%clk
0:03:00.5]} 4. Nxe4 {[%clk 0:03:02.1]} 4... Nf6 {[%clk 0:03:01.2]} 5. Qe2 {[%clk
0:03:02.1]} 5... Nxe4 {[%clk 0:03:00.3]} 6. Qxe4 {[%clk 0:03:03]} 6... Qd5
{[%clk 0:02:58.2]} 7. Qf4 {[%clk 0:03:02.2]} 7... Qf5 {[%clk 0:02:57.8]} 8. Qe3
{[%clk 0:03:02.9]} 8... e6 {[%clk 0:02:50.5]} 9. Bd3 {[%clk 0:02:57.4]} 9... Qc5
{[%clk 0:02:47.5]} 10. b3 {[%clk 0:02:55.5]} 10... Qxe3+ {[%clk 0:02:45.8]} 11.
fxe3 {[%clk 0:02:54.5]} 11... Be7 {[%clk 0:02:46.1]} 12. Bb2 {[%clk 0:02:54.3]}
12... O-O {[%clk 0:02:45.8]} 13. O-O-O {[%clk 0:02:53.4]} 13... a5 {[%clk
0:02:44.1]} 14. a4 {[%clk 0:02:52.4]} 14... Na6 {[%clk 0:02:43.2]} 15. Be2
{[%clk 0:02:41.1]} 15... Nb4 {[%clk 0:02:39.4]} 16. e4 {[%clk 0:02:40.5]} 16...
Rd8 {[%clk 0:02:35.6]} 17. d4 {[%clk 0:02:35.3]} 17... b6 {[%clk 0:02:23.5]} 18.
c3 {[%clk 0:02:27]} 18... Ba6 {[%clk 0:02:13.9]} 19. Rhe1 {[%clk 0:02:26.3]}
19... Bxe2 {[%clk 0:02:09.8]} 20. Rxe2 {[%clk 0:02:27.2]} 20... Na6 {[%clk
0:02:06.7]} 21. Ne5 {[%clk 0:02:27]} 21... Rac8 {[%clk 0:02:00.9]} 22. Nc4
{[%clk 0:02:18.8]} 22... Rb8 {[%clk 0:01:58.4]} 23. Kc2 {[%clk 0:02:13.4]} 23...
f6 {[%clk 0:01:36.3]} 24. Bc1 {[%clk 0:02:12.1]} 24... Kf7 {[%clk 0:01:32.4]}
25. Bf4 {[%clk 0:01:50.9]} 25... Rb7 {[%clk 0:01:32.6]} 26. Red2 {[%clk
0:01:44.4]} 26... Rdd7 {[%clk 0:01:30.3]} 27. Be3 {[%clk 0:01:31]} 27... Bd8
{[%clk 0:01:17.7]} 28. d5 {[%clk 0:01:28.3]} 28... cxd5 {[%clk 0:01:12.5]} 29.
exd5 {[%clk 0:01:29.2]} 29... exd5 {[%clk 0:01:11]} 30. Rxd5 {[%clk 0:01:29.4]}
30... Rxd5 {[%clk 0:00:53.9]} 31. Rxd5 {[%clk 0:01:30.3]} 31... Ke7 {[%clk
0:00:50.9]} 32. Rb5 {[%clk 0:01:26.3]} 32... Bc7 {[%clk 0:00:34.8]} 33. Nxa5
{[%clk 0:01:23.1]} 1-0

[Event "Early-Titled-Tuesday-Blitz-March-12-2024"]
[Site "Chess.com"]
[Date "2024.03.12"]
[Round "2"]
[White "Ze-Pequeno"]
[Black "Casper"]
[Result "1-0"]
[WhiteElo "2201"]
[BlackElo "2492"]
[TimeControl "180+1"]
[EndTime "8:16:12 PDT"]
[Termination "Ze-Pequeno won by resignation"]

1. e4 {[%clk 0:02:59.7]} 1... g6 {[%clk 0:02:58.2]} 2. d4 {[%clk 0:02:59.7]}
2... Bg7 {[%clk 0:02:59.1]} 3. c4 {[%clk 0:03:00]} 3... d6 {[%clk 0:02:59.6]} 4.
Nf3 {[%clk 0:02:59.4]} 4... Nc6 {[%clk 0:02:59.8]} 5. Be3 {[%clk 0:02:57.8]}
5... Bg4 {[%clk 0:03:00.1]} 6. Be2 {[%clk 0:02:58.2]} 6... e5 {[%clk 0:02:59.8]}
7. d5 {[%clk 0:02:58.5]} 7... Nce7 {[%clk 0:02:58.9]} 8. Nc3 {[%clk 0:02:57.2]}
8... f5 {[%clk 0:02:58.7]} 9. Ng5 {[%clk 0:02:55.5]} 9... Bxe2 {[%clk 0:02:57]}
10. Qxe2 {[%clk 0:02:55.6]} 10... Qd7 {[%clk 0:02:46.8]} 11. Ne6 {[%clk
0:02:53]} 11... Bf6 {[%clk 0:02:42.7]} 12. f3 {[%clk 0:02:51.7]} 12... a6 {[%clk
0:02:34.5]} 13. c5 {[%clk 0:02:46.9]} 13... Nc8 {[%clk 0:02:20.1]} 14. O-O
{[%clk 0:02:44.9]} 14... Nge7 {[%clk 0:02:18.8]} 15. f4 {[%clk 0:02:34.1]} 15...
fxe4 {[%clk 0:02:08.8]} 16. Nxe4 {[%clk 0:02:31.6]} 16... Nxd5 {[%clk
0:02:08.1]} 17. fxe5 {[%clk 0:02:10]} 17... Qxe6 {[%clk 0:01:18.6]} 18. Nxf6+
{[%clk 0:01:57.2]} 18... Nxf6 {[%clk 0:01:18.6]} 19. Rxf6 {[%clk 0:01:57.9]}
19... Qxe5 {[%clk 0:01:18.4]} 20. Qf2 {[%clk 0:01:58.5]} 20... Ne7 {[%clk
0:01:13]} 21. Bd4 {[%clk 0:01:49.6]} 21... Qd5 {[%clk 0:01:01.3]} 22. Re1 {[%clk
0:01:44.7]} 22... O-O-O {[%clk 0:00:47]} 23. Rxe7 {[%clk 0:01:17.8]} 23... dxc5
{[%clk 0:00:46.8]} 24. Be5 {[%clk 0:01:14.3]} 24... Qd1+ {[%clk 0:00:23.7]} 25.
Qf1 {[%clk 0:01:14.1]} 25... Qxf1+ {[%clk 0:00:19.9]} 26. Kxf1 {[%clk 0:01:15]}
26... Rd7 {[%clk 0:00:19.4]} 27. Rff7 {[%clk 0:01:13.6]} 27... Rxe7 {[%clk
0:00:15.6]} 28. Rxe7 {[%clk 0:01:13.7]} 28... c6 {[%clk 0:00:16.5]} 29. Bxh8
{[%clk 0:01:13.2]} 1-0

[Event "Early-Titled-Tuesday-Blitz-March-12-2024"]
[Site "Chess.com"]
[Date "2024.03.12"]
[Round "2"]
[White "JaackCamel"]
[Black "ajedrezsinlimites"]
[Result "0-1"]
[WhiteElo "2179"]
[BlackElo "2508"]
[TimeControl "180+1"]
[EndTime "8:16:14 PDT"]
[Termination "ajedrezsinlimites won on time"]

1. d4 {[%clk 0:02:56.2]} 1... Nf6 {[%clk 0:02:56]} 2. c4 {[%clk 0:02:55.4]} 2...
e6 {[%clk 0:02:56.5]} 3. Nc3 {[%clk 0:02:53.7]} 3... Bb4 {[%clk 0:02:56]} 4. Qc2
{[%clk 0:02:52.6]} 4... O-O {[%clk 0:02:54.7]} 5. a3 {[%clk 0:02:52.1]} 5...
Bxc3+ {[%clk 0:02:54.3]} 6. Qxc3 {[%clk 0:02:52]} 6... b6 {[%clk 0:02:54.6]} 7.
Nf3 {[%clk 0:02:49.9]} 7... Bb7 {[%clk 0:02:54.6]} 8. Bg5 {[%clk 0:02:48.1]}
8... h6 {[%clk 0:02:54.5]} 9. Bh4 {[%clk 0:02:46.7]} 9... d6 {[%clk 0:02:54.4]}
10. e3 {[%clk 0:02:44.6]} 10... a5 {[%clk 0:02:55]} 11. Bd3 {[%clk 0:02:42.2]}
11... a4 {[%clk 0:02:55.5]} 12. e4 {[%clk 0:02:35.9]} 12... g5 {[%clk
0:02:44.7]} 13. Nxg5 {[%clk 0:02:32.8]} 13... hxg5 {[%clk 0:02:39.1]} 14. Bxg5
{[%clk 0:02:32.2]} 14... Nd5 {[%clk 0:02:23.4]} 15. cxd5 {[%clk 0:02:13.7]}
15... Qxg5 {[%clk 0:02:22.5]} 16. O-O {[%clk 0:02:08.1]} 16... exd5 {[%clk
0:02:19.8]} 17. Qxc7 {[%clk 0:01:58.2]} 17... Ba6 {[%clk 0:02:15.3]} 18. Rad1
{[%clk 0:01:48.4]} 18... dxe4 {[%clk 0:02:11.5]} 19. Bxe4 {[%clk 0:01:44]} 19...
d5 {[%clk 0:02:09.8]} 20. f4 {[%clk 0:01:20.8]} 20... Qd8 {[%clk 0:02:04.9]} 21.
Qe5 {[%clk 0:01:13.2]} 21... Bxf1 {[%clk 0:01:45.8]} 22. Bxd5 {[%clk 0:01:03.1]}
22... Nd7 {[%clk 0:01:45.1]} 23. Qf5 {[%clk 0:00:52.1]} 23... Qf6 {[%clk
0:01:30.1]} 24. Qxd7 {[%clk 0:00:39.8]} 24... Be2 {[%clk 0:01:26.7]} 25. Rd2
{[%clk 0:00:30.7]} 25... Rad8 {[%clk 0:01:24.4]} 26. Qb7 {[%clk 0:00:19.6]}
26... Qxf4 {[%clk 0:01:15.5]} 27. Rxe2 {[%clk 0:00:07.7]} 27... Qxd4+ {[%clk
0:01:15.9]} 28. Kf1 {[%clk 0:00:05]} 28... Rxd5 {[%clk 0:01:15.8]} 0-1

[Event "Early-Titled-Tuesday-Blitz-March-12-2024"]
[Site "Chess.com"]
[Date "2024.03.12"]
[Round "2"]
[White "FaustinoOro"]
[Black "karinachess1"]
[Result "1-0"]
[WhiteElo "2906"]
[BlackElo "2604"]
[TimeControl "180+1"]
[EndTime "8:16:26 PDT"]
[Termination "FaustinoOro won on time"]

1. Nf3 {[%clk 0:03:00.9]} 1... Nf6 {[%clk 0:02:59.6]} 2. d4 {[%clk 0:02:59.8]}
2... e6 {[%clk 0:02:59.7]} 3. c4 {[%clk 0:02:59.6]} 3... d5 {[%clk 0:03:00.1]}
4. e3 {[%clk 0:02:59.5]} 4... Be7 {[%clk 0:02:59]} 5. Nc3 {[%clk 0:02:59.1]}
5... O-O {[%clk 0:02:58.8]} 6. Bd3 {[%clk 0:02:56.6]} 6... b6 {[%clk 0:02:59.2]}
7. O-O {[%clk 0:02:56.2]} 7... c5 {[%clk 0:02:53.2]} 8. cxd5 {[%clk 0:02:54.2]}
8... exd5 {[%clk 0:02:54.1]} 9. b3 {[%clk 0:02:53.4]} 9... Nc6 {[%clk
0:02:53.1]} 10. dxc5 {[%clk 0:02:51.2]} 10... bxc5 {[%clk 0:02:53.7]} 11. Bb2
{[%clk 0:02:51.8]} 11... d4 {[%clk 0:02:33.1]} 12. exd4 {[%clk 0:02:46.9]} 12...
cxd4 {[%clk 0:02:34]} 13. Nb5 {[%clk 0:02:37.5]} 13... Bg4 {[%clk 0:02:33.8]}
14. Be2 {[%clk 0:02:26.8]} 14... Bc5 {[%clk 0:01:30.7]} 15. Rc1 {[%clk
0:02:14.5]} 15... Qb6 {[%clk 0:01:22.9]} 16. Qc2 {[%clk 0:01:55]} 16... Nd7
{[%clk 0:01:19.4]} 17. Ng5 {[%clk 0:01:50.1]} 17... f5 {[%clk 0:00:46.4]} 18.
Bxg4 {[%clk 0:01:46.2]} 18... Qxb5 {[%clk 0:00:46.6]} 19. Bxf5 {[%clk
0:01:45.4]} 19... d3 {[%clk 0:00:14]} 20. Bxd3 {[%clk 0:01:42]} 20... Bxf2+
{[%clk 0:00:05.2]} 21. Rxf2 {[%clk 0:01:27.1]} 21... Qxg5 {[%clk 0:00:06.1]} 22.
Qxc6 {[%clk 0:01:09.6]} 22... Rxf2 {[%clk 0:00:03.5]} 23. Qxa8+ {[%clk
0:01:06.6]} 23... Rf8 {[%clk 0:00:02.9]} 24. Qe4 {[%clk 0:01:06]} 24... Nf6
{[%clk 0:00:02.9]} 25. Qe5 {[%clk 0:00:58.3]} 1-0

[Event "Early-Titled-Tuesday-Blitz-March-12-2024"]
[Site "Chess.com"]
[Date "2024.03.12"]
[Round "2"]
[White "GilbertoHernandezAmura"]
[Black "KuzubovYuriy"]
[Result "0-1"]
[WhiteElo "2466"]
[BlackElo "2900"]
[TimeControl "180+1"]
[EndTime "8:16:29 PDT"]
[Termination "KuzubovYuriy won on time"]

1. d4 {[%clk 0:03:00.9]} 1... g6 {[%clk 0:03:00.3]} 2. h4 {[%clk 0:02:58.6]}
2... Nf6 {[%clk 0:02:59.7]} 3. Bg5 {[%clk 0:02:58.2]} 3... d5 {[%clk 0:02:57]}
4. Nc3 {[%clk 0:02:55]} 4... Nbd7 {[%clk 0:02:52]} 5. e3 {[%clk 0:02:53.4]} 5...
h6 {[%clk 0:02:49.7]} 6. Bf4 {[%clk 0:02:52.7]} 6... a6 {[%clk 0:02:49.1]} 7. g4
{[%clk 0:02:41]} 7... b5 {[%clk 0:02:45.9]} 8. a3 {[%clk 0:02:40]} 8... Bb7
{[%clk 0:02:43.8]} 9. Bg2 {[%clk 0:02:37.8]} 9... Nb6 {[%clk 0:02:43]} 10. Be5
{[%clk 0:02:21.8]} 10... Rg8 {[%clk 0:02:42.2]} 11. Bxf6 {[%clk 0:02:13.4]}
11... exf6 {[%clk 0:02:42.3]} 12. Nge2 {[%clk 0:02:10]} 12... Bd6 {[%clk
0:02:40.5]} 13. Nc1 {[%clk 0:02:08.6]} 13... Qe7 {[%clk 0:02:36.8]} 14. Nd3
{[%clk 0:02:07.3]} 14... c6 {[%clk 0:02:26.2]} 15. Qe2 {[%clk 0:01:41.2]} 15...
O-O-O {[%clk 0:02:22.4]} 16. a4 {[%clk 0:01:11.1]} 16... Kb8 {[%clk 0:02:05.6]}
17. axb5 {[%clk 0:01:03.1]} 17... axb5 {[%clk 0:02:06.5]} 18. Nb1 {[%clk
0:00:48.9]} 18... f5 {[%clk 0:01:59.8]} 19. Nd2 {[%clk 0:00:34.6]} 19... fxg4
{[%clk 0:01:58.1]} 20. Qxg4 {[%clk 0:00:34.1]} 20... f5 {[%clk 0:01:58.8]} 21.
Qe2 {[%clk 0:00:25]} 21... Rde8 {[%clk 0:01:55.2]} 22. Kd1 {[%clk 0:00:07.9]}
22... Kc7 {[%clk 0:01:46]} 23. Bf3 {[%clk 0:00:06.3]} 23... Ra8 {[%clk
0:01:45.5]} 24. Rc1 {[%clk 0:00:05.7]} 24... Nc4 {[%clk 0:01:39.7]} 25. Nxc4
{[%clk 0:00:05.6]} 25... dxc4 {[%clk 0:01:39.3]} 26. Ne1 {[%clk 0:00:04.6]}
26... g5 {[%clk 0:01:37.4]} 27. hxg5 {[%clk 0:00:04.3]} 27... hxg5 {[%clk
0:01:37.8]} 28. Rg1 {[%clk 0:00:02.3]} 28... g4 {[%clk 0:01:37.4]} 29. Bh1
{[%clk 0:00:02]} 29... Rh8 {[%clk 0:01:37.6]} 30. Bg2 {[%clk 0:00:02.3]} 30...
Rh2 {[%clk 0:01:36.5]} 31. c3 {[%clk 0:00:02.9]} 31... Bc8 {[%clk 0:01:30.4]}
32. Nc2 {[%clk 0:00:02.9]} 32... Ra2 {[%clk 0:01:27.2]} 33. Ne1 {[%clk
0:00:02.1]} 33... f4 {[%clk 0:01:26.9]} 34. exf4 {[%clk 0:00:02]} 34... Qxe2+
{[%clk 0:01:26.7]} 35. Kxe2 {[%clk 0:00:02.9]} 35... Bxf4 {[%clk 0:01:24]} 36.
Rc2 {[%clk 0:00:03.6]} 36... Bf5 {[%clk 0:01:23.7]} 0-1

[Event "Early-Titled-Tuesday-Blitz-March-12-2024"]
[Site "Chess.com"]
[Date "2024.03.12"]
[Round "2"]
[White "AccioChess"]
[Black "GMSrinath"]
[Result "0-1"]
[WhiteElo "2422"]
[BlackElo "2788"]
[TimeControl "180+1"]
[EndTime "8:16:40 PDT"]
[Termination "GMSrinath won by checkmate"]

1. e4 {[%clk 0:02:51.7]} 1... c5 {[%clk 0:03:00.3]} 2. Nf3 {[%clk 0:02:51.3]}
2... d6 {[%clk 0:03:00.7]} 3. d4 {[%clk 0:02:51.5]} 3... cxd4 {[%clk 0:03:01.6]}
4. Nxd4 {[%clk 0:02:52.1]} 4... Nf6 {[%clk 0:03:02.3]} 5. Nc3 {[%clk 0:02:52.2]}
5... Nc6 {[%clk 0:03:02.9]} 6. Bg5 {[%clk 0:02:50.9]} 6... e6 {[%clk 0:03:03.5]}
7. Qd2 {[%clk 0:02:51.1]} 7... a6 {[%clk 0:03:04.1]} 8. O-O-O {[%clk 0:02:51.2]}
8... Be7 {[%clk 0:03:04.8]} 9. f4 {[%clk 0:02:50.8]} 9... Bd7 {[%clk 0:03:04.7]}
10. Nf3 {[%clk 0:02:47.1]} 10... b5 {[%clk 0:03:05.3]} 11. Bxf6 {[%clk
0:02:39.4]} 11... gxf6 {[%clk 0:03:04.9]} 12. f5 {[%clk 0:02:36.4]} 12... Qb6
{[%clk 0:03:04.5]} 13. fxe6 {[%clk 0:02:20.2]} 13... fxe6 {[%clk 0:03:04.5]} 14.
Ne2 {[%clk 0:02:20.3]} 14... O-O-O {[%clk 0:03:04.2]} 15. Nf4 {[%clk 0:02:20]}
15... Kb8 {[%clk 0:03:04.8]} 16. g3 {[%clk 0:02:19.3]} 16... Rhe8 {[%clk
0:02:54.9]} 17. Kb1 {[%clk 0:02:16.2]} 17... Ne5 {[%clk 0:02:49.3]} 18. Nd4
{[%clk 0:02:12]} 18... Bf8 {[%clk 0:02:46.9]} 19. Nh5 {[%clk 0:02:10]} 19... Ng4
{[%clk 0:02:32.1]} 20. Bh3 {[%clk 0:01:57]} 20... Bh6 {[%clk 0:02:30.5]} 21. Qe2
{[%clk 0:01:56]} 21... Ne3 {[%clk 0:02:23.8]} 22. Rd3 {[%clk 0:01:30.4]} 22...
f5 {[%clk 0:01:50.9]} 23. Nf6 {[%clk 0:01:18.3]} 23... Re7 {[%clk 0:01:33.5]}
24. Nxd7+ {[%clk 0:00:46.4]} 24... Rdxd7 {[%clk 0:01:34.4]} 25. exf5 {[%clk
0:00:44.1]} 25... exf5 {[%clk 0:01:30.6]} 26. Qh5 {[%clk 0:00:43.3]} 26... Bg7
{[%clk 0:01:20.3]} 27. Nxf5 {[%clk 0:00:36.3]} 27... Nxf5 {[%clk 0:01:20.7]} 28.
Qxf5 {[%clk 0:00:32.2]} 28... Rc7 {[%clk 0:01:20.9]} 29. Qxh7 {[%clk 0:00:26.6]}
29... Qc6 {[%clk 0:00:53]} 30. Rdd1 {[%clk 0:00:20.1]} 30... Bxb2 {[%clk
0:00:50.7]} 31. Qg8+ {[%clk 0:00:15.9]} 31... Re8 {[%clk 0:00:50.6]} 32. Qd5
{[%clk 0:00:15.8]} 32... Qxc2# {[%clk 0:00:50.3]} 0-1

[Event "Early-Titled-Tuesday-Blitz-March-12-2024"]
[Site "Chess.com"]
[Date "2024.03.12"]
[Round "2"]
[White "PattyCastillo"]
[Black "ChessSwole"]
[Result "0-1"]
[WhiteElo "2083"]
[BlackElo "2732"]
[TimeControl "180+1"]
[EndTime "8:16:46 PDT"]
[Termination "ChessSwole won by resignation"]

1. d4 {[%clk 0:03:00.1]} 1... Nf6 {[%clk 0:02:58.2]} 2. Nf3 {[%clk 0:02:58]}
2... d5 {[%clk 0:02:56.6]} 3. e3 {[%clk 0:02:57.9]} 3... Bf5 {[%clk 0:02:56.2]}
4. c4 {[%clk 0:02:57.1]} 4... e6 {[%clk 0:02:54.7]} 5. Qb3 {[%clk 0:02:54.5]}
5... Nc6 {[%clk 0:02:54.7]} 6. c5 {[%clk 0:02:53.6]} 6... Rb8 {[%clk 0:02:49.9]}
7. Nc3 {[%clk 0:02:52.9]} 7... Be7 {[%clk 0:02:42.7]} 8. Bb5 {[%clk 0:02:42.9]}
8... O-O {[%clk 0:02:35.7]} 9. O-O {[%clk 0:02:41]} 9... Na5 {[%clk 0:02:34]}
10. Qd1 {[%clk 0:02:38.3]} 10... c6 {[%clk 0:02:27.3]} 11. Bd3 {[%clk
0:02:33.1]} 11... Bxd3 {[%clk 0:02:21.1]} 12. Qxd3 {[%clk 0:02:34]} 12... b6
{[%clk 0:02:19.1]} 13. b4 {[%clk 0:02:23.5]} 13... Nc4 {[%clk 0:02:18.6]} 14. e4
{[%clk 0:02:06.3]} 14... bxc5 {[%clk 0:02:08.2]} 15. bxc5 {[%clk 0:02:03.2]}
15... Qa5 {[%clk 0:01:43.3]} 16. e5 {[%clk 0:01:30]} 16... Nd7 {[%clk
0:01:41.2]} 17. Bg5 {[%clk 0:01:25]} 17... Qd8 {[%clk 0:01:27.9]} 18. h4 {[%clk
0:01:19.2]} 18... h6 {[%clk 0:01:27.6]} 19. Bxe7 {[%clk 0:01:14.9]} 19... Qxe7
{[%clk 0:01:28.5]} 20. Rfb1 {[%clk 0:01:04]} 20... f6 {[%clk 0:01:27.5]} 21.
exf6 {[%clk 0:00:37.1]} 21... Qxf6 {[%clk 0:01:28.4]} 22. Rxb8 {[%clk
0:00:34.2]} 22... Rxb8 {[%clk 0:01:29.3]} 23. Re1 {[%clk 0:00:28.6]} 23... e5
{[%clk 0:01:10.6]} 24. dxe5 {[%clk 0:00:21.8]} 24... Ndxe5 {[%clk 0:01:10]} 25.
Nxe5 {[%clk 0:00:19.1]} 25... Nxe5 {[%clk 0:01:10.9]} 26. Qe3 {[%clk 0:00:16.2]}
26... Ng4 {[%clk 0:00:58.1]} 27. Qe6+ {[%clk 0:00:14.7]} 27... Qxe6 {[%clk
0:00:56.9]} 28. Rxe6 {[%clk 0:00:12.9]} 28... d4 {[%clk 0:00:52.1]} 29. Re4
{[%clk 0:00:07.4]} 29... dxc3 {[%clk 0:00:51.4]} 30. Rxg4 {[%clk 0:00:07.8]}
30... c2 {[%clk 0:00:52.2]} 31. Rc4 {[%clk 0:00:07.7]} 31... Rb1+ {[%clk
0:00:52.6]} 0-1

[Event "Early-Titled-Tuesday-Blitz-March-12-2024"]
[Site "Chess.com"]
[Date "2024.03.12"]
[Round "2"]
[White "ASKA538"]
[Black "Alexchess1984"]
[Result "1-0"]
[WhiteElo "2262"]
[BlackElo "2740"]
[TimeControl "180+1"]
[EndTime "8:16:51 PDT"]
[Termination "ASKA538 won on time"]

1. e4 {[%clk 0:03:00.9]} 1... c5 {[%clk 0:02:59.4]} 2. d4 {[%clk 0:02:58.7]}
2... cxd4 {[%clk 0:02:59]} 3. c3 {[%clk 0:02:58.9]} 3... dxc3 {[%clk 0:02:58.3]}
4. Nxc3 {[%clk 0:02:59]} 4... e6 {[%clk 0:02:58.7]} 5. Bc4 {[%clk 0:02:59]} 5...
a6 {[%clk 0:02:58]} 6. Nf3 {[%clk 0:02:58.8]} 6... Bb4 {[%clk 0:02:57.3]} 7. O-O
{[%clk 0:02:56.3]} 7... Ne7 {[%clk 0:02:56.1]} 8. Bg5 {[%clk 0:02:51]} 8... h6
{[%clk 0:02:54.5]} 9. Bh4 {[%clk 0:02:49.8]} 9... Bxc3 {[%clk 0:02:51.7]} 10.
bxc3 {[%clk 0:02:48.8]} 10... Nbc6 {[%clk 0:02:52.1]} 11. Qd6 {[%clk 0:02:42.4]}
11... b5 {[%clk 0:02:36.7]} 12. Bd5 {[%clk 0:02:09.1]} 12... Ra7 {[%clk
0:01:55.4]} 13. Rad1 {[%clk 0:02:04.9]} 13... Qc7 {[%clk 0:01:46.7]} 14. Qa3
{[%clk 0:01:52]} 14... Ng6 {[%clk 0:00:48.8]} 15. Bg3 {[%clk 0:01:50.1]} 15...
e5 {[%clk 0:00:27.9]} 16. h4 {[%clk 0:01:33.2]} 16... b4 {[%clk 0:00:23.8]} 17.
cxb4 {[%clk 0:01:30.9]} 17... O-O {[%clk 0:00:24.4]} 18. Rc1 {[%clk 0:01:25.5]}
18... Nf4 {[%clk 0:00:22.7]} 19. Rfd1 {[%clk 0:01:22]} 19... Ne2+ {[%clk
0:00:21.6]} 20. Kh2 {[%clk 0:01:21.9]} 20... Nxc1 {[%clk 0:00:21.2]} 21. Rxc1
{[%clk 0:01:22.8]} 21... Qd6 {[%clk 0:00:14.8]} 22. Qe3 {[%clk 0:01:20.7]} 22...
Ra8 {[%clk 0:00:10.6]} 23. a3 {[%clk 0:01:20.8]} 23... Qg6 {[%clk 0:00:08.8]}
24. Rc5 {[%clk 0:01:19.3]} 24... Bb7 {[%clk 0:00:06.8]} 25. Nxe5 {[%clk
0:01:17.4]} 25... Nxe5 {[%clk 0:00:06.6]} 26. Bxe5 {[%clk 0:01:17.3]} 26... Bxd5
{[%clk 0:00:05.9]} 27. Rxd5 {[%clk 0:01:16.9]} 27... Rfe8 {[%clk 0:00:05.9]} 28.
Qd4 {[%clk 0:01:14.5]} 28... Qg4 {[%clk 0:00:05]} 29. g3 {[%clk 0:01:08]} 29...
d6 {[%clk 0:00:05]} 30. Bf4 {[%clk 0:01:06.9]} 30... Rac8 {[%clk 0:00:02.9]} 31.
Rxd6 {[%clk 0:01:07]} 31... Rc2 {[%clk 0:00:02]} 32. Kg2 {[%clk 0:01:03.3]}
32... Re2 {[%clk 0:00:01.3]} 33. e5 {[%clk 0:01:01.7]} 33... Re4 {[%clk
0:00:01.3]} 34. Qxe4 {[%clk 0:01:00.9]} 1-0

[Event "Early-Titled-Tuesday-Blitz-March-12-2024"]
[Site "Chess.com"]
[Date "2024.03.12"]
[Round "2"]
[White "Alexander_Moskalenko"]
[Black "SilverSwords13"]
[Result "0-1"]
[WhiteElo "2867"]
[BlackElo "2482"]
[TimeControl "180+1"]
[EndTime "8:16:55 PDT"]
[Termination "SilverSwords13 won by checkmate"]

1. b3 {[%clk 0:02:59.3]} 1... d5 {[%clk 0:02:45.8]} 2. Bb2 {[%clk 0:03:00.2]}
2... c5 {[%clk 0:02:45.8]} 3. e3 {[%clk 0:02:57.1]} 3... a6 {[%clk 0:02:43.9]}
4. c4 {[%clk 0:02:52.3]} 4... e6 {[%clk 0:02:41.8]} 5. Nf3 {[%clk 0:02:52.2]}
5... Nc6 {[%clk 0:02:41.8]} 6. cxd5 {[%clk 0:02:50.4]} 6... exd5 {[%clk
0:02:42]} 7. d4 {[%clk 0:02:51.3]} 7... Nf6 {[%clk 0:02:41.9]} 8. Bd3 {[%clk
0:02:50.5]} 8... Be7 {[%clk 0:02:36.1]} 9. dxc5 {[%clk 0:02:49.8]} 9... Bxc5
{[%clk 0:02:37]} 10. O-O {[%clk 0:02:49.1]} 10... O-O {[%clk 0:02:37.6]} 11. Nc3
{[%clk 0:02:48.8]} 11... Bg4 {[%clk 0:02:28.7]} 12. Ne2 {[%clk 0:02:48.5]} 12...
Bxf3 {[%clk 0:02:20.4]} 13. gxf3 {[%clk 0:02:48]} 13... Re8 {[%clk 0:02:20.5]}
14. Rc1 {[%clk 0:02:46.9]} 14... Bb6 {[%clk 0:02:15.1]} 15. Bb1 {[%clk
0:02:39.4]} 15... Rc8 {[%clk 0:01:59.3]} 16. Qd3 {[%clk 0:02:28.9]} 16... g6
{[%clk 0:01:57.6]} 17. f4 {[%clk 0:02:08.4]} 17... Ne4 {[%clk 0:01:47.4]} 18.
Ng3 {[%clk 0:02:03.1]} 18... Nxf2 {[%clk 0:01:36.1]} 19. Kxf2 {[%clk 0:01:54.9]}
19... Rxe3 {[%clk 0:01:18.5]} 20. Qxe3 {[%clk 0:01:54.8]} 20... Bxe3+ {[%clk
0:01:17.9]} 21. Kxe3 {[%clk 0:01:55.7]} 21... d4+ {[%clk 0:01:17.7]} 22. Kf3
{[%clk 0:01:54.9]} 22... d3 {[%clk 0:01:12.7]} 23. Rcd1 {[%clk 0:01:52.5]} 23...
Qd5+ {[%clk 0:01:09.6]} 24. Kf2 {[%clk 0:01:52.4]} 24... Nb4 {[%clk 0:01:04.8]}
25. Rfe1 {[%clk 0:01:47.4]} 25... Nc2 {[%clk 0:00:44.3]} 26. Re5 {[%clk
0:01:36.7]} 26... Qd6 {[%clk 0:00:40.2]} 27. Ne4 {[%clk 0:01:36.9]} 27... Qb6+
{[%clk 0:00:40.1]} 28. Kg3 {[%clk 0:01:22.1]} 28... Qe3+ {[%clk 0:00:39]} 29.
Kg2 {[%clk 0:01:22.7]} 29... Qe2+ {[%clk 0:00:35.1]} 30. Nf2 {[%clk 0:01:23]}
30... Ne3+ {[%clk 0:00:32.3]} 31. Kg3 {[%clk 0:01:21.7]} 31... Nxd1 {[%clk
0:00:29.2]} 32. Bxd3 {[%clk 0:01:12.3]} 32... Qxf2+ {[%clk 0:00:25.7]} 33. Kg4
{[%clk 0:01:11.6]} 33... Qg2+ {[%clk 0:00:22.8]} 34. Kh4 {[%clk 0:01:11.4]}
34... Qxh2+ {[%clk 0:00:23.3]} 35. Kg5 {[%clk 0:01:10.7]} 35... h6+ {[%clk
0:00:19.9]} 36. Kf6 {[%clk 0:01:10.6]} 36... Qxf4+ {[%clk 0:00:19.8]} 37. Ke7
{[%clk 0:01:10]} 37... Qb4+ {[%clk 0:00:19.9]} 38. Kd7 {[%clk 0:01:08.8]} 38...
Qf8 {[%clk 0:00:13.2]} 39. Ba3 {[%clk 0:00:54.2]} 39... Qd8# {[%clk 0:00:13]}
0-1